fUST/lending_fUST_20250814
["ID","MTS","AMOUNT","RATE_DAILY","PERIOD"]
[379175559,1755178233821,-982.96,0.00016438,2]
[379175561,1755178233831,-460.0,0.00016438,2]
[379175563,1755178233842,-460.0,0.00016438,2]
[379175564,1755178233851,-460.0,0.00016438,2]
[379175566,1755178233859,-460.0,0.00016438,2]
[379175568,1755178233869,-460.0,0.00016438,2]
[379175570,1755178233879,-460.0,0.00016438,2]
[379175572,1755178233890,-460.0,0.00016438,2]
[379175573,1755178233900,-460.0,0.00016438,2]
[379175574,1755178233910,-540.45,0.00016438,2]
[379175575,1755178233919,-484.98184861,0.00016438,2]
[379175576,1755178233929,-460.0,0.00016438,2]
[379175577,1755178233938,-582.2,0.00016438,2]
[379175578,1755178233948,-460.0,0.00016438,2]
[379175579,1755178233957,-460.0,0.00016438,2]
[379175580,1755178233967,-460.0,0.00016438,2]
[379175581,1755178233983,-1137.4,0.00016438,2]
[379175582,1755178233992,-476.22,0.00016438,2]
[379175583,1755178234002,-460.0,0.00016438,2]
[379175584,1755178234013,-371.18990114,0.00016438,2]
[379175585,1755178234024,-460.0,0.00016438,2]
[379175586,1755178234034,-460.0,0.00016438,2]
[379175587,1755178234044,-457.33764172,0.00016438,2]
[379175588,1755178234056,-460.0,0.00016438,2]
[379175589,1755178234066,-460.0,0.00016438,2]
[379175590,1755178234076,-460.0,0.00016438,2]
[379175591,1755178234086,-460.0,0.00016438,2]
[379175592,1755178234096,-460.0,0.00016438,2]
[379175593,1755178234106,-460.0,0.00016438,2]
[379175594,1755178234116,-460.0,0.00016438,2]
[379175595,1755178234125,-597.26,0.00016438,2]
[379175596,1755178234135,-460.0,0.00016438,2]
[379175597,1755178234146,-460.0,0.00016438,2]
[379175598,1755178234156,-460.0,0.00016438,2]
[379175599,1755178234166,-460.0,0.00016438,2]
[379175600,1755178234176,-676.12,0.00016438,2]
[379175601,1755178234185,-460.0,0.00016438,2]
[379175602,1755178234195,-460.0,0.00016438,2]
[379175603,1755178234205,-460.0,0.00016438,2]
[379175605,1755178234215,-460.0,0.00016438,2]
[379175606,1755178234227,-460.0,0.00016438,2]
[379175607,1755178234238,-460.0,0.00016438,2]
[379175609,1755178234247,-1060.89,0.00016438,2]
[379175611,1755178234257,-460.0,0.00016438,2]
[379175613,1755178234266,-462.88,0.00016438,2]
[379175615,1755178234276,-460.0,0.00016438,2]
[379175617,1755178234285,-641.1,0.00016438,2]
[379175619,1755178234295,-460.0,0.00016438,2]
[379175621,1755178234304,-460.0,0.00016438,2]
[379175623,1755178234313,-460.0,0.00016438,2]
[379175625,1755178234323,-1007.60723624,0.00016438,2]
[379175627,1755178234332,-460.0,0.00016438,2]
[379175629,1755178234342,-460.0,0.00016438,2]
[379175631,1755178234352,-460.0,0.00016438,2]
[379175633,1755178234362,-525.35932693,0.00016438,2]
[379175635,1755178234371,-460.0,0.00016438,2]
[379175637,1755178234380,-460.0,0.00016438,2]
[379175639,1755178234390,-460.0,0.00016438,2]
[379175641,1755178234399,-582.62005579,0.00016438,2]
[379175643,1755178234408,-460.0,0.00016438,2]
[379175645,1755178234419,-460.0,0.00016438,2]
[379175646,1755178234429,-460.0,0.00016438,2]
[379175648,1755178234439,-460.0,0.00016438,2]
[379175650,1755178234449,-460.0,0.00016438,2]
[379175652,1755178234458,-460.0,0.00016438,2]
[379175654,1755178234468,-460.0,0.00016438,2]
[379175657,1755178234481,-460.0,0.00016438,2]
[379175659,1755178234491,-460.0,0.00016438,2]
[379175661,1755178234501,-460.0,0.00016438,2]
[379175663,1755178234511,-501.83819179,0.00016438,2]
[379175665,1755178234520,-588.38,0.00016438,2]
[379175667,1755178234530,-460.0,0.00016438,2]
[379175669,1755178234540,-229.50989978,0.00016438,2]
[379175670,1755178234549,-460.0,0.00016438,2]
[379175672,1755178234559,-460.0,0.00016438,2]
[379175675,1755178234569,-675.64,0.00016438,2]
[379175676,1755178234579,-460.0,0.00016438,2]
[379175678,1755178234589,-460.0,0.00016438,2]
[379175680,1755178234599,-460.0,0.00016438,2]
[379175682,1755178234608,-460.0,0.00016438,2]
[379175683,1755178234618,-463.95,0.00016438,2]
[379175685,1755178234627,-829.01,0.00016438,2]
[379175687,1755178234637,-460.0,0.00016438,2]
[379175688,1755178234647,-460.0,0.00016438,2]
[379175690,1755178234656,-460.0,0.00016438,2]
[379175691,1755178234666,-460.0,0.00016438,2]
[379175692,1755178234676,-502.28859155,0.00016438,2]
[379175694,1755178234686,-618.93,0.00016438,2]
[379175695,1755178234695,-460.0,0.00016438,2]
[379175697,1755178234705,-460.0,0.00016438,2]
[379175699,1755178234716,-2860.81,0.00016438,2]
[379175701,1755178234728,-461.44803139,0.00016438,2]
[379175703,1755178234737,-460.0,0.00016438,2]
[379175705,1755178234747,-1760.0,0.00016438,2]
[379175707,1755178234756,-481.31,0.00016438,2]
[379175709,1755178234766,-460.0,0.00016438,2]
[379175711,1755178234775,-480.83,0.00016438,2]
[379175713,1755178234785,-463.8079176,0.00016438,2]
[379175715,1755178234795,-460.0,0.00016438,2]
[379175718,1755178234805,-460.0,0.00016438,2]
[379175719,1755178234815,-460.0,0.00016438,2]
[379175722,1755178234825,-331.3225897,0.00016438,2]
[379175723,1755178234834,-460.0,0.00016438,2]
[379175725,1755178234844,-710.25,0.00016438,2]
[379175727,1755178234854,-640.27,0.00016438,2]
[379175729,1755178234863,-576.87,0.00016438,2]
[379175731,1755178234872,-460.0,0.00016438,2]
[379175733,1755178234882,-460.0,0.00016438,2]
[379175735,1755178234891,-460.0,0.00016438,2]
[379175737,1755178234901,-873.92,0.00016438,2]
[379175739,1755178234910,-460.0,0.00016438,2]
[379175741,1755178234920,-472.13,0.00016438,2]
[379175743,1755178234929,-460.0,0.00016438,2]
[379175745,1755178234940,-460.0,0.00016438,2]
[379175747,1755178234949,-236.4076895,0.00016438,2]
[379175749,1755178234959,-545.52702893,0.00016438,2]
[379175751,1755178234970,-460.38566954,0.00016438,2]
[379175753,1755178234982,-474.83,0.00016438,2]
[379175755,1755178234992,-802.36,0.00016438,2]
[379175757,1755178235001,-593.11,0.00016438,2]
[379175759,1755178235012,-460.0,0.00016438,2]
[379175761,1755178235021,-460.0,0.00016438,2]
[379175763,1755178235032,-460.0,0.00016438,2]
[379175765,1755178235041,-460.0,0.00016438,2]
[379175767,1755178235053,-1106.06,0.00016438,2]
[379175769,1755178235063,-685.53,0.00016438,2]
[379175771,1755178235072,-713.27,0.00016438,2]
[379175773,1755178235082,-572.36,0.00016438,2]
[379175775,1755178235091,-460.0,0.00016438,2]
[379175777,1755178235101,-460.0,0.00016438,2]
[379175779,1755178235111,-460.0,0.00016438,2]
[379175781,1755178235120,-460.0,0.00016438,2]
[379175783,1755178235130,-460.0,0.00016438,2]
[379175785,1755178235139,-589.51706759,0.00016438,2]
[379175788,1755178235156,-727.20293241,0.00016438,2]
[379175790,1755178235165,-460.0,0.00016438,2]
[379175792,1755178235175,-460.0,0.00016438,2]
[379175794,1755178235185,-478.1006777,0.00016438,2]
[379175796,1755178235195,-460.0,0.00016438,2]
[379175798,1755178235205,-460.0,0.00016438,2]
[379175800,1755178235215,-460.0,0.00016438,2]
[379175802,1755178235228,-460.0,0.00016438,2]
[379175804,1755178235238,-1013.3,0.00016438,2]
[379175806,1755178235248,-460.0,0.00016438,2]
[379175808,1755178235258,-460.0,0.00016438,2]
[379175810,1755178235267,-460.0,0.00016438,2]
[379175812,1755178235276,-460.0,0.00016438,2]
[379175814,1755178235286,-1423.67,0.00016438,2]
[379175816,1755178235295,-477.33368472,0.00016438,2]
[379175818,1755178235305,-460.0,0.00016438,2]
[379175820,1755178235314,-373.49652542,0.00016438,2]
[379175822,1755178235324,-460.0,0.00016438,2]
[379175824,1755178235334,-848.2,0.00016438,2]
[379175826,1755178235344,-460.0,0.00016438,2]
[379175828,1755178235353,-460.0,0.00016438,2]
[379175830,1755178235363,-460.0,0.00016438,2]
[379175832,1755178235372,-3173.18,0.00016438,2]
[379175834,1755178235381,-237.18534488,0.00016438,2]
[379175837,1755178235403,-299.89465512,0.00016438,2]
[379175839,1755178235412,-770.99,0.00016438,2]
[379175841,1755178235422,-352.69314374,0.00016438,2]
[379175862,1755178235621,-107.30685626,0.00016438,2]
[379175864,1755178235631,-460.0,0.00016438,2]
[379175866,1755178235640,-460.0,0.00016438,2]
[379175868,1755178235650,-460.0,0.00016438,2]
[379175870,1755178235660,-333.23868645,0.00016438,2]
[379175872,1755178235670,-470.75473729,0.00016438,2]
[379175874,1755178235682,-269.29526271,0.00016438,2]
[379175876,1755178235692,-147.35027834,0.00016438,2]
[379175879,1755178235704,-312.64972166,0.00016438,2]
[379175881,1755178235713,-143.82988476,0.00016438,2]
[379176215,1755178240453,-600.48011524,0.00016438,2]
[379176216,1755178240462,-1371.34,0.00016438,2]
[379176217,1755178240472,-460.0,0.00016438,2]
[379176218,1755178240483,-460.0,0.00016438,2]
[379176219,1755178240493,-460.0,0.00016438,2]
[379176221,1755178240502,-367.35961192,0.00016438,2]
[379176326,1755178243553,-645.40039298,0.00016438,2]
[379176327,1755178243566,-669.9199951,0.00016438,2]
[379176328,1755178243575,-460.0,0.00016438,2]
[379176329,1755178243585,-460.0,0.00016438,2]
[379176330,1755178243595,-1909.54,0.00016438,2]
[379176331,1755178243604,-460.0,0.00016438,2]
[379176332,1755178243613,-460.0,0.00016438,2]
[379176333,1755178243623,-460.0,0.00016438,2]
[379176334,1755178243632,-460.0,0.00016438,2]
[379176335,1755178243642,-460.0,0.00016438,2]
[379176336,1755178243651,-766.85,0.00016438,2]
[379176337,1755178243661,-618.14,0.00016438,2]
[379176339,1755178243670,-546.95,0.00016438,2]
[379176341,1755178243679,-460.0,0.00016438,2]
[379176342,1755178243689,-638.18,0.00016438,2]
[379176344,1755178243699,-644.88,0.00016438,2]
[379176345,1755178243708,-973.52,0.00016438,2]
[379176347,1755178243718,-1332.83,0.00016438,2]
[379176348,1755178243727,-536.69499624,0.00016438,2]
[379176349,1755178243740,-460.0,0.00016438,2]
[379176351,1755178243749,-291.05352414,0.00016438,2]
[379176362,1755178243860,-25.02395295,0.00016438,2]
[379176542,1755178246741,-683.92252291,0.00016438,2]
[379176545,1755178246751,-1000.0,0.00016438,2]
[379176548,1755178246761,-1000.0,0.00016438,2]
[379176551,1755178246770,-1000.0,0.00016438,2]
[379176554,1755178246780,-1000.0,0.00016438,2]
[379176557,1755178246790,-460.0,0.00016438,2]
[379176560,1755178246799,-240.120184,0.00016438,2]
[379176563,1755178246808,-460.0,0.00016438,2]
[379176565,1755178246817,-460.0,0.00016438,2]
[379176568,1755178246826,-460.0,0.00016438,2]
[379176571,1755178246836,-460.0,0.00016438,2]
[379176574,1755178246846,-1125.1,0.00016438,2]
[379176577,1755178246855,-2289.24,0.00016438,2]
[379176580,1755178246865,-460.0,0.00016438,2]
[379176582,1755178246875,-743.93,0.00016438,2]
[379176586,1755178246885,-460.0,0.00016438,2]
[379176588,1755178246895,-9291.68,0.00016438,2]
[379176591,1755178246904,-460.0,0.00016438,2]
[379176594,1755178246914,-972.45,0.00016438,2]
[379176597,1755178246923,-460.0,0.00016438,2]
[379176600,1755178246933,-502.4483731,0.00016438,2]
[379176603,1755178246943,-1031.36854946,0.00016438,2]
[379176608,1755178246961,-67.68145054,0.00016438,2]
[379176611,1755178246971,-460.0,0.00016438,2]
[379176613,1755178246988,-460.0,0.00016438,2]
[379176615,1755178246998,-460.0,0.00016438,2]
[379176617,1755178247007,-470.82115211,0.00016438,2]
[379176619,1755178247018,-460.0,0.00016438,2]
[379176621,1755178247027,-666.86,0.00016438,2]
[379176623,1755178247036,-949.31,0.00016438,2]
[379176625,1755178247045,-5905.04,0.00016438,2]
[379176627,1755178247057,-460.0,0.00016438,2]
[379176629,1755178247066,-460.0,0.00016438,2]
[379176631,1755178247076,-1047.28739735,0.00016438,2]
[379178489,1755178363275,2456.53449736,0.000158,2]
[379178490,1755178363301,738.88830815,0.000158,2]
[379178491,1755178374438,163.0,7.1e-07,2]
[379178920,1755178462828,157.0,0.000158,2]
[379178921,1755178466342,242.36117,0.00015223,2]
[379179061,1755178498178,1000.0,0.00015,2]
[379179235,1755178524604,157.0,0.000158,2]
[379179236,1755178525228,2541.75052185,0.000158,2]
[379179237,1755178525259,5000.0,0.000158,2]
[379179238,1755178525303,5000.0,0.000158,2]
[379179239,1755178525337,5000.0,0.000158,2]
[379179240,1755178525370,5000.0,0.000158,2]
[379179241,1755178525400,5000.0,0.000158,2]
[379179242,1755178525431,5000.0,0.000158,2]
[379179243,1755178525462,5000.0,0.000158,2]
[379179244,1755178525492,5000.0,0.000158,2]
[379179245,1755178525522,5000.0,0.000158,2]
[379179246,1755178525551,5000.0,0.000158,2]
[379179247,1755178525578,5000.0,0.000158,2]
[379179248,1755178525606,5000.0,0.000158,2]
[379179249,1755178525634,5000.0,0.000158,2]
[379179250,1755178525662,5000.0,0.000158,2]
[379179251,1755178525695,5000.0,0.000158,2]
[379179252,1755178525726,5000.0,0.000158,2]
[379179253,1755178525754,5000.0,0.000158,2]
[379179254,1755178525783,5000.0,0.000158,2]
[379179255,1755178525811,5000.0,0.000158,2]
[379179256,1755178525844,5000.0,0.000158,2]
[379179257,1755178525872,5000.0,0.000158,2]
[379179258,1755178525902,5000.0,0.000158,2]
[379179259,1755178525931,5000.0,0.000158,2]
[379179260,1755178525961,5000.0,0.000158,2]
[379179261,1755178525988,5000.0,0.000158,2]
[379179262,1755178526016,5000.0,0.000158,2]
[379179263,1755178526045,5000.0,0.000158,2]
[379179264,1755178526074,5000.0,0.000158,2]
[379179265,1755178526102,5000.0,0.000158,2]
[379179266,1755178526133,5000.0,0.000158,2]
[379179267,1755178526160,5000.0,0.000158,2]
[379179268,1755178526188,5000.0,0.000158,2]
[379179269,1755178526220,5000.0,0.000158,2]
[379179270,1755178526247,5000.0,0.000158,2]
[379179271,1755178526275,5000.0,0.000158,2]
[379179272,1755178526304,5000.0,0.000158,2]
[379179273,1755178526331,5000.0,0.000158,2]
[379179274,1755178526360,5000.0,0.000158,2]
[379179275,1755178526389,5000.0,0.000158,2]
[379179276,1755178526416,5000.0,0.000158,2]
[379179277,1755178526442,5000.0,0.000158,2]
[379179278,1755178526748,5000.0,0.000158,2]
[379179279,1755178526776,5000.0,0.000158,2]
[379179280,1755178526802,5000.0,0.000158,2]
[379179281,1755178526829,5000.0,0.000158,2]
[379179282,1755178526855,5000.0,0.000158,2]
[379179283,1755178526883,4387.10574871,0.000158,2]
[379179309,1755178541065,157.0,0.000158,2]
[379179310,1755178545831,455.89425129,0.00015801,2]
[379179311,1755178545856,4544.10574871,0.00015801,2]
[379179312,1755178561481,455.89425129,0.00015801,2]
[379179313,1755178561508,4544.10574871,0.00015801,2]
[379179314,1755178578702,455.89425129,0.00015801,2]
[379179315,1755178578725,4544.10574871,0.00015801,2]
[379179316,1755178579362,221.7099769,0.00015765,2]
[379179317,1755178595127,234.18427439,0.00015801,2]
[379179318,1755178595154,4765.81572561,0.00015801,2]
[379179319,1755178608733,234.18427439,0.00015797,2]
[379179320,1755178608760,3599.91191573,0.00015797,2]
[379179321,1755178611102,1400.08808427,0.00015801,2]
[379179322,1755178611127,3599.91191573,0.00015801,2]
[379179368,1755178627108,1400.08808427,0.00015801,2]
[379179371,1755178627132,3599.91191573,0.00015801,2]
[379179507,1755178642498,1400.08808427,0.00015801,2]
[379179508,1755178642522,3599.91191573,0.00015801,2]
[379179509,1755178655639,887.838922,0.00013699,2]
[379179510,1755178658124,512.24916227,0.00015801,2]
[379179511,1755178658150,4487.75083773,0.00015801,2]
[379179514,1755178673876,512.24916227,0.00015801,2]
[379179515,1755178673901,4487.75083773,0.00015801,2]
[379179516,1755178690792,512.24916227,0.00015801,2]
[379179517,1755178690818,4487.75083773,0.00015801,2]
[379179518,1755178706239,512.24916227,0.00015801,2]
[379179519,1755178706263,4487.75083773,0.00015801,2]
[379179520,1755178717066,210.35256253,0.00015796,2]
[379179521,1755178721805,301.89659974,0.00015801,2]
[379179522,1755178721829,4698.10340026,0.00015801,2]
[379179523,1755178737764,301.89659974,0.00015801,2]
[379179524,1755178737791,4698.10340026,0.00015801,2]
[379179525,1755178754019,301.89659974,0.00015801,2]
[379179526,1755178754047,4698.10340026,0.00015801,2]
[379179527,1755178769954,301.89659974,0.00015801,2]
[379179528,1755178769981,4698.10340026,0.00015801,2]
[379179529,1755178786334,301.89659974,0.00015801,2]
[379179530,1755178786360,4698.10340026,0.00015801,2]
[379179531,1755178802907,301.89659974,0.00015801,2]
[379179532,1755178802932,4698.10340026,0.00015801,2]
[379179533,1755178820246,301.89659974,0.00015801,2]
[379179534,1755178820272,4698.10340026,0.00015801,2]
[379179540,1755178836843,301.89659974,0.00015801,2]
[379179541,1755178836868,4698.10340026,0.00015801,2]
[379179542,1755178852313,301.89659974,0.00015801,2]
[379179543,1755178852342,4698.10340026,0.00015801,2]
[379179544,1755178867897,301.89659974,0.00015801,2]
[379179545,1755178867923,4698.10340026,0.00015801,2]
[379179546,1755178876567,301.89659974,0.00014965,2]
[379179547,1755178876591,701.43154086,0.00014965,2]
[379179548,1755178883362,4298.56845914,0.00015801,2]
[379179549,1755178883388,701.43154086,0.00015801,2]
[379179550,1755178894574,3354.83416632,0.00015796,2]
[379179551,1755178898817,943.73429282,0.00015801,2]
[379179552,1755178898842,4056.26570718,0.00015801,2]
[379179553,1755178988775,943.73429282,0.00014905,2]
[379179554,1755178988803,5000.0,0.00014905,2]
[379179555,1755178988830,2075.75238398,0.00014905,2]
[379179557,1755179036572,150.9,0.00025999,120]
[379179558,1755179145459,-300.0,0.00015894,2]
[379179559,1755179145482,-85.95709981,0.00015894,2]
[379179560,1755179150360,-199.23093973,0.00015894,2]
[379179561,1755179151972,-14.81196046,0.00015894,2]
[379179562,1755179151997,-214.27951495,0.00015894,2]
[379179563,1755179154233,-85.72048505,0.00015894,2]
[379179564,1755179154258,-116.55873618,0.00015894,2]
[379179565,1755179157833,-263.50347645,0.00015894,2]
[379179566,1755179174541,2200.0,0.0001478,2]
[379179567,1755179174903,-255.87486452,0.00015894,2]
[379179568,1755179177668,-203.06113577,0.00015894,2]
[379179569,1755179179602,724.24761602,0.00015795,2]
[379179570,1755179179628,2211.23227951,0.00015795,2]
[379179571,1755179180975,-221.61056324,0.00015894,2]
[379179572,1755179182902,-139.39122384,0.00015894,2]
[379179573,1755179182925,-232.97621604,0.00015894,2]
[379179574,1755179187555,-67.02378396,0.00015894,2]
[379179575,1755179187579,-272.56445255,0.00015895,2]
[379179576,1755179188259,2788.76772049,0.00015796,2]
[379179577,1755179188286,5000.0,0.00015796,2]
[379179578,1755179188311,5000.0,0.00015796,2]
[379179579,1755179188336,5000.0,0.00015796,2]
[379179580,1755179188360,3079.62031208,0.00015796,2]
[379179581,1755179247339,-246.65896268,0.00015893,2]
[379179582,1755179249812,-170.35037353,0.00015893,2]
[379179583,1755179279969,-173.51759742,0.00015893,2]
[379179584,1755179283196,-194.15731026,0.00015893,2]
[379179585,1755179286449,-168.48143441,0.00015893,2]
[379179588,1755179352394,1920.37968792,0.00015795,2]
[379179589,1755179352420,5000.0,0.00015795,2]
[379179590,1755179352445,5000.0,0.00015795,2]
[379179591,1755179352471,5000.0,0.00015795,2]
[379179592,1755179352498,5000.0,0.00015795,2]
[379179593,1755179352523,838.96703397,0.00015795,2]
[379179594,1755179416671,242.3611714,0.00014896,2]
[379179595,1755179427799,2100.0,0.0001478,2]
[379179644,1755179433333,-300.0,0.00015892,2]
[379179646,1755179433344,-1200.0,0.00015892,2]
[379179648,1755179433355,-500.0,0.00015892,2]
[379179651,1755179433366,-500.0,0.00015892,2]
[379179653,1755179433377,-500.0,0.00015892,2]
[379179655,1755179433387,-500.0,0.00015892,2]
[379179657,1755179433397,-211.86136069,0.00015892,2]
[379179659,1755179433410,-252.55197939,0.00015892,2]
[379179661,1755179433420,-500.0,0.00015892,2]
[379179663,1755179433430,-500.0,0.00015892,2]
[379179665,1755179433440,-500.0,0.00015892,2]
[379179667,1755179433450,-399.64836758,0.00015892,2]
[379179669,1755179433465,-500.0,0.00015892,2]
[379179671,1755179433474,-515.7937941,0.00015892,2]
[379179673,1755179433484,-500.0,0.00015892,2]
[379179675,1755179433493,-500.0,0.00015892,2]
[379179677,1755179433503,-500.0,0.00015892,2]
[379179679,1755179433513,-500.0,0.00015892,2]
[379179681,1755179433522,-500.0,0.00015892,2]
[379179683,1755179433532,-500.0,0.00015892,2]
[379179685,1755179433542,-163.11482928,0.00015892,2]
[379179687,1755179433551,-500.0,0.00015892,2]
[379179689,1755179433561,-500.0,0.00015892,2]
[379179691,1755179433571,-500.0,0.00015892,2]
[379179693,1755179433580,-167.0674,0.00015892,2]
[379179695,1755179433590,-500.0,0.00015892,2]
[379179697,1755179433599,-500.0,0.00015892,2]
[379179699,1755179433609,-500.0,0.00015892,2]
[379179701,1755179433619,-500.0,0.00015892,2]
[379179703,1755179433629,-500.0,0.00015892,2]
[379179705,1755179433639,-500.0,0.00015892,2]
[379179707,1755179433649,-500.0,0.00015892,2]
[379179709,1755179433659,-500.0,0.00015892,2]
[379179711,1755179433668,-500.0,0.00015892,2]
[379179713,1755179433678,-496.73265738,0.00015892,2]
[379179715,1755179433689,-500.0,0.00015892,2]
[379179717,1755179433699,-500.0,0.00015892,2]
[379179719,1755179433712,-500.0,0.00015892,2]
[379179721,1755179433723,-500.0,0.00015892,2]
[379179723,1755179433733,-500.0,0.00015892,2]
[379179725,1755179433744,-246.8343217,0.00015893,2]
[379179727,1755179433754,-254.31827841,0.00015893,2]
[379179729,1755179433764,-488.71155435,0.00015893,2]
[379179731,1755179433774,-50000.0,0.00015894,2]
[379179733,1755179433784,-500.0,0.00015896,2]
[379179736,1755179433794,-429.01913224,0.00015899,2]
[379179737,1755179433803,-800.0,0.00015911,2]
[379179739,1755179433814,-800.0,0.00015916,2]
[379179741,1755179433824,-800.0,0.00015925,2]
[379179744,1755179433833,-806.29414645,0.00015942,2]
[379179746,1755179433843,-800.0,0.00015989,2]
[379179748,1755179433853,-800.0,0.00015991,2]
[379179750,1755179433863,-800.0,0.00015994,2]
[379179753,1755179433873,-800.0,0.00015997,2]
[379179756,1755179433882,-4061.21735869,0.0001607,2]
[379179759,1755179433892,-800.0,0.00016117,2]
[379179762,1755179433902,-800.0,0.0001612,2]
[379179765,1755179433912,-2100.0,0.0001615,2]
[379179768,1755179433921,-800.0,0.00016165,2]
[379179770,1755179433931,-500.0,0.0001617,2]
[379179773,1755179433941,-4061.21735869,0.00016206,2]
[379179776,1755179433950,-200.0,0.00016212,2]
[379179779,1755179433962,-200.0,0.00016212,2]
[379179781,1755179433972,-200.0,0.00016212,2]
[379179785,1755179433983,-200.0,0.00016212,2]
[379179788,1755179433993,-200.0,0.00016212,2]
[379179790,1755179434003,-200.0,0.00016212,2]
[379179792,1755179434013,-4061.21735869,0.00016341,2]
[379179796,1755179434023,-151.0,0.000164,2]
[379179798,1755179434033,-215.1,0.00016428,3]
[379179801,1755179434043,-645.34,0.00016428,3]
[379179804,1755179434053,-814.28,0.00016428,3]
[379179807,1755179434062,-465.78,0.00016428,3]
[379179810,1755179434072,-255.88,0.00016428,3]
[379179813,1755179434082,-797.04,0.00016428,3]
[379179816,1755179434092,-223.2526569,0.00016437,2]
[379179819,1755179434102,-225.21242999,0.00016438,2]
[379179822,1755179434112,-460.0,0.00016438,2]
[379179825,1755179434122,-460.0,0.00016438,2]
[379179828,1755179434132,-460.0,0.00016438,2]
[379179830,1755179434142,-460.0,0.00016438,2]
[379179832,1755179434153,-460.0,0.00016438,2]
[379179834,1755179434163,-460.0,0.00016438,2]
[379179837,1755179434173,-460.0,0.00016438,2]
[379179841,1755179434184,-460.0,0.00016438,2]
[379179844,1755179434194,-460.0,0.00016438,2]
[379179847,1755179434205,-608.62467816,0.00016438,2]
[379179849,1755179434215,-460.0,0.00016438,2]
[379179853,1755179434226,-460.0,0.00016438,2]
[379179855,1755179434236,-460.0,0.00016438,2]
[379179857,1755179434246,-460.0,0.00016438,2]
[379179859,1755179434256,-460.0,0.00016438,2]
[379179861,1755179434266,-461.04858743,0.00016438,2]
[379179862,1755179434276,-460.0,0.00016438,2]
[379179864,1755179434289,-500.0,0.00016438,2]
[379179866,1755179434300,-460.0,0.00016438,2]
[379179868,1755179434310,-460.0,0.00016438,2]
[379179869,1755179434320,-460.0,0.00016438,2]
[379179871,1755179434332,-460.0,0.00016438,2]
[379179873,1755179434342,-466.33812446,0.00016438,2]
[379179875,1755179434352,-460.0,0.00016438,2]
[379179877,1755179434362,-460.0,0.00016438,2]
[379179879,1755179434374,-460.0,0.00016438,2]
[379179881,1755179434385,-460.0,0.00016438,2]
[379179883,1755179434394,-500.0,0.00016438,2]
[379179899,1755179434594,-500.0,0.00016438,2]
[379179901,1755179434605,-500.0,0.00016438,2]
[379179903,1755179434614,-524.07916061,0.00016438,2]
[379179905,1755179434624,-460.0,0.00016438,2]
[379179907,1755179434633,-460.0,0.00016438,2]
[379179909,1755179434642,-460.0,0.00016438,2]
[379179910,1755179434652,-460.0,0.00016438,2]
[379179912,1755179434661,-460.0,0.00016438,2]
[379179914,1755179434671,-460.0,0.00016438,2]
[379179916,1755179434681,-460.0,0.00016438,2]
[379179919,1755179434691,-353.03593812,0.00016438,2]
[379179921,1755179434700,-460.0,0.00016438,2]